bitfinex/quotes_BTCUSD_20250314
["timestamp","ask_amount","ask_price","bid_price","bid_amount"]
[1741955224864,0.239223,83604.0,83601.0,0.239231]
[1741955225037,0.539229,83602.0,83599.0,0.0001694]
[1741955225191,0.3,83602.0,83599.0,0.0001694]
[1741955225414,0.53923,83602.0,83599.0,0.0001694]
[1741955225616,0.239234,83600.0,83599.0,0.0001694]
[1741955225815,0.551189,83602.0,83599.0,0.0001694]
[1741955226012,0.239234,83600.0,83599.0,0.0001694]
[1741955226431,0.251195,83600.0,83599.0,0.0001694]
[1741955227350,0.251195,83600.0,83599.0,0.0011694]
[1741955227546,0.251195,83600.0,83599.0,0.0001694]
[1741955227863,0.251195,83600.0,83599.0,0.0011694]
[1741955228066,0.251195,83600.0,83599.0,0.0021694]
[1741955230666,0.67077003,83600.0,83599.0,0.0021694]
[1741955230798,0.80545003,83600.0,83599.0,0.0021694]
[1741955231208,0.67077003,83600.0,83599.0,0.0021694]
[1741955231405,0.80545003,83600.0,83599.0,0.0021694]
[1741955231613,0.251244,83584.0,83578.0,0.239295]
[1741955231805,0.251244,83584.0,83578.0,0.239297]
[1741955231806,0.239288,83581.0,83578.0,0.239297]
[1741955232003,0.011963,83587.0,83579.0,0.01991796]
[1741955232239,0.239279,83585.0,83580.0,0.011964]
[1741955232489,0.251237,83586.0,83581.0,0.011964]
[1741955232809,0.251247,83583.0,83582.0,0.00793289]
[1741955232980,0.239283,83584.0,83581.0,0.239288]
[1741955233138,0.26508643,83583.0,83580.0,0.239286]
[1741955233341,0.239283,83583.0,83581.0,0.00793991]
[1741955233563,0.239285,83582.0,83578.0,0.239291]
[1741955233765,0.239294,83579.0,83575.0,0.011965]
[1741955233943,0.251271,83575.0,83574.0,0.0462695]
[1741955234154,0.239302,83577.0,83574.0,0.2394775]
[1741955234493,0.251261,83580.0,83575.0,0.25127]
[1741955234816,0.239297,83580.0,83578.0,0.002]
[1741955235226,0.239294,83579.0,83578.0,0.002]
[1741955235546,0.251261,83580.0,83578.0,0.002]
[1741955235896,0.239294,83579.0,83578.0,0.002]
[1741955236243,0.239303,83576.0,83574.0,0.0001695]
[1741955236431,0.239303,83576.0,83574.0,0.0031695]
[1741955236642,0.239301,83577.0,83574.0,0.2424775]
[1741955237064,0.239302,83578.0,83576.0,0.239302]
[1741955237204,0.239302,83577.0,83574.0,0.0031695]
[1741955237407,0.239303,83576.0,83574.0,0.0001695]
[1741955237645,0.251268,83576.0,83574.0,0.0001695]
[1741955237856,0.239306,83575.0,83574.0,0.0001695]
[1741955238023,0.27003427,83576.0,83574.0,0.0001695]
[1741955238223,0.239306,83575.0,83574.0,0.0001695]
[1741955238631,0.251271,83575.0,83574.0,0.0001695]
[1741955239033,0.239306,83575.0,83574.0,0.0031695]
[1741955239230,0.239306,83575.0,83574.0,0.0001695]
[1741955239415,0.01876627,83576.0,83574.0,0.2394775]
[1741955239611,0.25807127,83576.0,83574.0,0.0071695]
[1741955239956,0.01876627,83576.0,83575.0,0.239306]
[1741955240111,0.01876627,83576.0,83574.0,0.2424775]
[1741955240297,0.25807027,83576.0,83574.0,0.0031695]
[1741955240500,0.01876627,83576.0,83574.0,0.2464775]
[1741955240820,0.01876627,83576.0,83574.0,0.2424775]
[1741955241190,0.01876627,83576.0,83574.0,0.2394775]
[1741955241360,0.01876627,83576.0,83575.0,0.239306]
[1741955241705,0.01876627,83576.0,83574.0,0.2464775]
[1741955242213,0.01876627,83576.0,83575.0,0.239306]
[1741955242650,0.01876627,83576.0,83575.0,0.242306]
[1741955242994,0.01876627,83576.0,83575.0,0.243306]
[1741955243870,0.01876627,83576.0,83575.0,0.004]
[1741955244639,0.25806927,83576.0,83575.0,0.004]
[1741955244998,0.25806927,83576.0,83575.0,0.007]
[1741955245343,0.01876627,83576.0,83575.0,0.246306]
[1741955247290,0.01559543,83576.0,83575.0,0.007]
[1741955247674,0.239303,83576.0,83575.0,0.007]
[1741955248220,0.3,83579.0,83576.0,0.239303]
[1741955248424,0.239298,83578.0,83576.0,0.239303]
[1741955248886,0.2393,83577.0,83575.0,0.007]
[1741955249226,0.2393,83577.0,83574.0,0.2394755]
[1741955249426,0.5393,83577.0,83576.0,0.005]
[1741955249789,0.55806638,83577.0,83576.0,0.002]
[1741955250631,0.31876638,83577.0,83576.0,0.241303]
[1741955250816,0.31876638,83577.0,83575.0,0.239305]
[1741955251500,0.31876638,83577.0,83576.0,0.002]
[1741955251737,0.31876638,83577.0,83575.0,0.239305]
[1741955252139,0.31876638,83577.0,83576.0,0.003]
[1741955252367,0.55806638,83577.0,83576.0,0.003]
[1741955252575,0.239303,83576.0,83574.0,0.2394755]
[1741955252896,0.55806638,83577.0,83576.0,0.003]
[1741955252897,0.57003138,83577.0,83576.0,0.003]
[1741955253430,0.57003138,83577.0,83576.0,0.01097777]
[1741955253629,0.57003138,83577.0,83576.0,0.01397777]
[1741955254160,0.57003138,83577.0,83576.0,0.01097777]
[1741955255052,0.57003138,83577.0,83576.0,0.01397777]
[1741955255536,0.57003138,83577.0,83576.0,0.006]
[1741955257134,0.31876638,83577.0,83576.0,0.006]
[1741955257606,0.31876638,83577.0,83576.0,0.0139866]
[1741955257838,0.55806638,83577.0,83576.0,0.006]
[1741955258084,0.31876638,83577.0,83576.0,0.01398601]
[1741955258339,0.31876638,83577.0,83576.0,0.006]
[1741955258585,0.31876638,83577.0,83576.0,0.25328901]
[1741955259544,0.31876638,83577.0,83576.0,0.26525401]
[1741955259755,0.31876638,83577.0,83576.0,0.34085401]
[1741955259982,0.01876638,83577.0,83576.0,0.34085401]
[1741955260196,0.0003388,83583.0,83582.0,0.326849]
[1741955260806,0.0003388,83583.0,83582.0,0.33479274]
[1741955262244,0.0003388,83583.0,83582.0,0.33779274]
[1741955262651,0.0003388,83583.0,83582.0,0.33479274]
[1741955263064,0.01910274,83583.0,83582.0,0.33479274]
[1741955263272,0.01910274,83583.0,83582.0,0.33779274]
[1741955263946,0.01910274,83583.0,83582.0,0.34079274]
[1741955268321,0.01910274,83583.0,83582.0,0.26519274]
[1741955268447,0.01910274,83583.0,83582.0,0.25322874]
[1741955268448,0.0003388,83583.0,83582.0,0.25322874]
[1741955268648,0.0003388,83583.0,83582.0,0.01394374]
[1741955268851,0.0003388,83583.0,83582.0,0.25322874]
[1741955269468,0.0003388,83583.0,83582.0,0.01394374]
[1741955269809,0.2396218,83583.0,83582.0,0.01394374]
[1741955269966,0.2515858,83583.0,83582.0,0.01394374]
[1741955270173,0.2515858,83583.0,83582.0,0.006]
[1741955270380,0.2515858,83583.0,83582.0,0.01482535]
[1741955270582,0.2515858,83583.0,83582.0,0.006]
[1741955270786,0.2515858,83583.0,83582.0,0.01482535]
[1741955270986,0.2515858,83583.0,83582.0,0.006]
[1741955271188,0.2515858,83583.0,83582.0,0.01182535]
[1741955271413,0.2515858,83583.0,83582.0,0.003]
[1741955271632,0.27035168,83583.0,83582.0,0.001]
[1741955272048,0.27035168,83583.0,83582.0,0.003]
[1741955272447,0.27035168,83583.0,83582.0,0.01182535]
[1741955272647,0.27035168,83583.0,83582.0,0.003]
[1741955273050,0.2515858,83583.0,83582.0,0.003]
[1741955273511,0.5515858,83583.0,83582.0,0.003]
[1741955273715,0.239313,83573.0,83568.0,0.2514605]
[1741955274109,0.239313,83573.0,83569.0,0.00891665]
[1741955274668,0.239313,83573.0,83570.0,0.23932]
[1741955274868,0.01121617,83572.0,83570.0,0.23932]
[1741955275098,0.01121617,83572.0,83570.0,0.00890963]
[1741955275099,0.25053017,83572.0,83570.0,0.00890963]
[1741955275372,0.01121617,83572.0,83570.0,0.24822963]
[1741955276277,0.011965,83575.0,83571.0,0.239317]
[1741955276633,0.011965,83575.0,83572.0,0.00889558]
[1741955277022,0.239308,83574.0,83572.0,0.00889558]
[1741955277224,0.239314,83572.0,83570.0,0.008]
[1741955277424,0.239311,83573.0,83570.0,0.008]
[1741955277649,0.011965,83574.0,83571.0,0.0089026]
[1741955277880,0.251276,83573.0,83571.0,0.0089026]
[1741955278597,0.551276,83573.0,83572.0,0.003]
[1741955278755,0.551276,83573.0,83572.0,0.004]
[1741955278962,0.551276,83573.0,83572.0,0.01289558]
[1741955279302,0.551276,83573.0,83572.0,0.00889558]
[1741955280588,0.551276,83573.0,83572.0,0.004]
[1741955280978,0.3,83573.0,83572.0,0.01289558]
[1741955281175,0.3,83573.0,83572.0,0.243314]
[1741955281409,0.3,83573.0,83572.0,0.008]
[1741955282090,0.3,83573.0,83572.0,0.247314]
[1741955282293,0.3,83573.0,83572.0,0.25620958]
[1741955282693,0.3,83573.0,83572.0,0.01689558]
[1741955283014,0.3,83573.0,83572.0,0.25620958]
[1741955283218,0.31876687,83573.0,83572.0,0.25620958]
[1741955283709,0.31876687,83573.0,83572.0,0.01689558]
[1741955283874,0.31876687,83573.0,83572.0,0.25620958]
[1741955284702,0.01876687,83573.0,83572.0,0.35127458]
[1741955285569,0.01876687,83573.0,83572.0,0.40077458]
[1741955286040,0.0003388,83583.0,83582.0,0.251249]
[1741955286441,0.0003388,83583.0,83582.0,0.26007622]
[1741955287959,0.01155138,83583.0,83582.0,0.26007622]
[1741955288316,0.01155138,83583.0,83582.0,0.26107622]
[1741955288516,0.03031659,83583.0,83582.0,0.26207622]
[1741955289342,0.03031659,83583.0,83582.0,0.39227622]
[1741955290549,0.01910401,83583.0,83582.0,0.39227622]
[1741955291184,0.01910401,83583.0,83582.0,0.40681707]
[1741955291738,0.01910401,83583.0,83582.0,0.40481707]
[1741955292178,0.01910401,83583.0,83582.0,0.40581707]
[1741955292382,0.01910401,83583.0,83582.0,0.40681707]
[1741955292755,0.01910401,83583.0,83582.0,0.40881707]
[1741955292898,0.01910401,83583.0,83582.0,0.40481707]
[1741955293100,0.01910401,83583.0,83582.0,0.40981707]
[1741955293297,0.01910401,83583.0,83582.0,0.41381707]
[1741955296801,0.0303089,83583.0,83582.0,0.41381707]
[1741955298342,0.01910401,83583.0,83582.0,0.41381707]
[1741955299736,0.01910401,83583.0,83582.0,0.40881707]
[1741955300118,0.01910401,83583.0,83582.0,0.40481707]
[1741955300299,0.01910401,83583.0,83582.0,0.40981707]
[1741955300943,0.3,83611.0,83607.0,0.251172]
[1741955301149,0.3,83611.0,83609.0,0.239208]
[1741955301553,0.31876188,83611.0,83610.0,0.00862789]
[1741955301782,0.3,83611.0,83610.0,0.00862789]
[1741955301979,0.32335797,83611.0,83610.0,0.00862789]
[1741955302182,0.02335797,83611.0,83610.0,0.24783289]
[1741955302546,0.3,83612.0,83611.0,0.251162]
[1741955302947,0.3,83612.0,83611.0,0.2597799]
[1741955303164,0.00912461,83613.0,83612.0,0.2392]
[1741955303332,0.00912461,83613.0,83611.0,0.2478199]
[1741955303529,0.54832161,83613.0,83612.0,0.00861088]
[1741955303932,0.3,83612.0,83610.0,0.239205]
[1741955304163,0.3,83612.0,83611.0,0.239202]
[1741955304811,0.32334385,83612.0,83610.0,0.239205]
[1741955305007,0.02334385,83612.0,83609.0,0.251167]
[1741955305220,0.03907808,83613.0,83609.0,0.01196]
[1741955305420,0.3,83611.0,83609.0,0.239208]
[1741955305821,0.3,83611.0,83609.0,0.217208]
[1741955306186,0.3,83611.0,83609.0,0.239208]
[1741955306393,0.01119207,83610.0,83609.0,0.239208]
[1741955307088,0.01119207,83610.0,83608.0,0.251171]
[1741955307292,0.01119207,83610.0,83608.0,0.239211]
[1741955307607,0.01119207,83610.0,83609.0,0.239208]
[1741955307934,0.3,83609.0,83608.0,0.239211]
[1741955308176,0.31119207,83609.0,83608.0,0.239211]
[1741955309455,0.31119207,83609.0,83607.0,0.251173]
[1741955309868,0.31119207,83609.0,83608.0,0.251171]
[1741955310769,0.01119207,83609.0,83608.0,0.251171]
[1741955311634,0.30109289,83611.0,83608.0,0.251171]
[1741955311949,0.239203,83611.0,83608.0,0.251171]
[1741955312150,0.239203,83611.0,83608.0,0.239211]
[1741955313192,0.2393725,83611.0,83608.0,0.239211]
[1741955313527,0.2393725,83611.0,83609.0,0.00863193]
[1741955313932,0.239205,83610.0,83609.0,0.00863193]
[1741955314132,0.239205,83610.0,83607.0,0.251173]
[1741955314359,0.239205,83610.0,83609.0,0.00863193]
[1741955314582,0.2393725,83611.0,83608.0,0.00863895]
[1741955314780,0.2393725,83611.0,83609.0,0.00863193]
[1741955314980,0.239205,83610.0,83609.0,0.00863193]
[1741955315176,0.239205,83610.0,83608.0,0.239211]
[1741955315381,0.239205,83610.0,83609.0,0.00863193]
[1741955316504,0.2393725,83611.0,83609.0,0.00863193]
[1741955316710,0.239205,83610.0,83609.0,0.00863193]
[1741955317432,0.239209,83609.0,83607.0,0.239213]
[1741955317638,0.251203,83600.0,83595.0,0.239247]
[1741955317850,0.2512,83600.0,83596.0,0.239243]
[1741955318001,0.239239,83600.0,83597.0,0.23924]
[1741955318195,0.239239,83599.0,83596.0,0.239244]
[1741955318601,0.01876163,83600.0,83596.0,0.011962]
[1741955318942,0.01876163,83600.0,83599.0,0.251198]
[1741955319143,0.239223,83604.0,83599.0,0.28573931]
[1741955319390,0.239216,83607.0,83604.0,0.239223]
[1741955319391,0.3,83607.0,83604.0,0.239223]
[1741955319540,0.3,83607.0,83605.0,0.239217]
[1741955320097,0.3,83607.0,83605.0,0.251178]
[1741955320215,0.239214,83607.0,83604.0,0.239222]
[1741955320412,0.239214,83607.0,83605.0,0.0263172]
[1741955320413,0.3,83606.0,83605.0,0.0263172]
[1741955321215,0.3,83606.0,83605.0,0.23922]
[1741955321363,0.539214,83607.0,83604.0,0.239222]
[1741955321569,0.239217,83606.0,83604.0,0.239222]
[1741955322082,0.539214,83607.0,83604.0,0.239222]
[1741955322284,0.539214,83607.0,83603.0,0.251181]
[1741955322285,0.03072146,83606.0,83601.0,0.239229]
[1741955322488,0.03072146,83606.0,83600.0,0.239234]
[1741955322489,0.239225,83604.0,83600.0,0.239234]
[1741955322690,0.3,83604.0,83602.0,0.239226]
[1741955323515,0.3,83604.0,83603.0,0.239225]
[1741955325324,0.3,83605.0,83603.0,0.239225]
[1741955326184,0.539222,83605.0,83602.0,0.2395668]
[1741955326403,0.239225,83603.0,83602.0,0.0003388]
[1741955326718,0.251185,83604.0,83602.0,0.0003388]
[1741955327174,0.31876146,83606.0,83604.0,0.239223]
[1741955328526,0.31876146,83606.0,83605.0,0.00865957]
[1741955328737,0.31876146,83606.0,83604.0,0.239223]
[1741955329041,0.55797846,83606.0,83605.0,0.00865957]
[1741955329581,0.55797846,83606.0,83605.0,0.00865954]
[1741955329780,0.01876146,83606.0,83605.0,0.00865954]
[1741955329951,0.01876146,83606.0,83605.0,0.23922]
[1741955330167,0.31876146,83606.0,83605.0,0.00865954]
[1741955330542,0.3,83604.0,83603.0,0.234225]
[1741955330731,0.3,83604.0,83602.0,0.2395648]
[1741955331724,0.539221,83605.0,83602.0,0.2395648]
[1741955332939,0.311961,83605.0,83602.0,0.0003388]
[1741955333143,0.239225,83603.0,83602.0,0.0003388]
[1741955334087,0.251186,83603.0,83602.0,0.0003388]
[1741955334480,0.551186,83603.0,83602.0,0.0003388]
[1741955337179,0.551186,83603.0,83588.0,0.251231]
[1741955337180,0.011963,83591.0,83588.0,0.239267]
[1741955337617,0.011963,83591.0,83589.0,0.00877186]
[1741955337618,0.239263,83590.0,83589.0,0.00877186]
[1741955337993,0.239263,83590.0,83587.0,0.239271]
[1741955338222,0.239263,83590.0,83589.0,0.00877186]
[1741955338426,0.539256,83593.0,83588.0,0.01177888]
[1741955338626,0.539256,83593.0,83589.0,0.25999786]
[1741955338850,0.539256,83593.0,83589.0,0.29812665]
[1741955339075,0.539256,83593.0,83589.0,0.30112665]
[1741955339281,0.239249,83595.0,83589.0,0.06186365]
[1741955339488,0.01196,83608.0,83600.0,0.089261]
[1741955339621,0.3,83606.0,83604.0,0.23922]
[1741955339823,0.3,83606.0,83605.0,0.00866064]
[1741955340045,0.539217,83606.0,83604.0,0.23922]
[1741955340245,0.3,83606.0,83605.0,0.00866064]
[1741955340442,0.3,83606.0,83603.0,0.239225]
[1741955340443,0.55797877,83606.0,83603.0,0.239225]
[1741955340645,0.55797877,83606.0,83604.0,0.00866766]
[1741955340818,0.3,83605.0,83604.0,0.00866766]
[1741955341038,0.3,83605.0,83604.0,0.24789066]
[1741955341656,0.3,83605.0,83604.0,0.00866766]
[1741955341863,0.239224,83604.0,83601.0,0.239231]
[1741955342149,0.539224,83604.0,83602.0,0.00868026]
[1741955342294,0.3,83603.0,83602.0,0.00868026]
[1741955342501,0.011962,83598.0,83592.0,0.239255]
[1741955342718,0.239252,83594.0,83591.0,0.23926]
[1741955343270,0.239254,83593.0,83590.0,0.239262]
[1741955343441,0.01876308,83594.0,83593.0,0.239254]
[1741955343972,0.01876308,83594.0,83593.0,0.24799753]
[1741955344121,0.01876308,83594.0,83593.0,0.25995953]
[1741955344322,0.01876308,83594.0,83593.0,0.33715953]
[1741955344530,0.3,83601.0,83600.0,0.239234]
[1741955344909,0.3,83601.0,83600.0,0.24792918]
[1741955345295,0.239231,83601.0,83600.0,0.00869518]
[1741955345518,0.539235,83600.0,83597.0,0.239242]
[1741955346731,0.3,83598.0,83597.0,0.239243]
[1741955347350,0.3,83598.0,83597.0,0.251205]
[1741955348251,0.3,83600.0,83597.0,0.251205]
[1741955348859,0.31876189,83600.0,83597.0,0.251205]
[1741955349068,0.31876189,83600.0,83598.0,0.239238]
[1741955349377,0.55799589,83600.0,83598.0,0.239238]
[1741955349583,0.55899589,83600.0,83598.0,0.239238]
[1741955349779,0.55899589,83600.0,83596.0,0.011962]
[1741955349780,0.3,83598.0,83596.0,0.251207]
[1741955350031,0.3,83598.0,83597.0,0.239243]
[1741955350957,0.3,83599.0,83597.0,0.239243]
[1741955351383,0.01876189,83600.0,83599.0,0.251198]
[1741955351608,0.01876189,83600.0,83599.0,0.334098]
[1741955354061,8.9e-07,83600.0,83599.0,0.334098]
[1741955354261,0.0001694,83609.0,83608.0,0.328771]
[1741955356970,0.0001694,83609.0,83608.0,0.329771]
[1741955357534,0.01892827,83609.0,83608.0,0.329771]
[1741955358661,0.01892827,83609.0,83608.0,0.3384071]
[1741955370845,0.0001694,83609.0,83608.0,0.3384071]
[1741955372593,0.0001694,83609.0,83608.0,0.2608071]
[1741955373825,0.01892833,83609.0,83608.0,0.2608071]
[1741955375556,0.0001694,83609.0,83608.0,0.2608071]
[1741955378273,0.01892923,83609.0,83608.0,0.2608071]
[1741955381458,0.01892923,83609.0,83608.0,0.2913061]
[1741955382013,0.01892923,83609.0,83608.0,0.3670061]
[1741955384859,0.0001694,83609.0,83608.0,0.3670061]
[1741955385898,0.0001694,83609.0,83608.0,0.3660061]
[1741955386215,0.0001694,83609.0,83608.0,0.3680061]
[1741955386421,0.0001694,83609.0,83608.0,0.3700061]
[1741955386782,0.0001694,83609.0,83608.0,0.3680061]
[1741955386995,0.0001694,83609.0,83608.0,0.3710061]
[1741955387636,0.0001694,83609.0,83608.0,0.3690061]
[1741955387858,0.01892776,83609.0,83608.0,0.3690061]
[1741955388085,0.3,83627.0,83623.0,0.011958]
[1741955388214,0.3,83627.0,83626.0,0.23916]
[1741955388419,0.3,83627.0,83625.0,0.239162]
[1741955388662,0.31875755,83627.0,83626.0,0.00850718]
[1741955389021,0.31875755,83627.0,83626.0,0.24766718]
[1741955389232,0.01875755,83627.0,83626.0,0.00850718]
[1741955389637,0.01975755,83627.0,83626.0,0.00850718]
[1741955390640,0.04575073,83627.0,83626.0,0.00850718]
[1741955392784,0.04575073,83627.0,83626.0,0.24766718]
[1741955396597,0.04575073,83627.0,83626.0,0.00850718]
[1741955397004,0.04575073,83627.0,83626.0,0.24766718]
[1741955399334,0.34575073,83627.0,83626.0,0.24766718]
[1741955399540,0.34575073,83627.0,83626.0,0.00850718]
[1741955400306,0.58490773,83627.0,83626.0,0.00850718]
[1741955407587,0.59686473,83627.0,83626.0,0.00850718]
[1741955409268,0.58490773,83627.0,83626.0,0.00850718]
[1741955409801,0.34575073,83627.0,83626.0,0.00850718]
[1741955410018,0.58490773,83627.0,83626.0,0.00850718]
[1741955411000,0.58490773,83627.0,83626.0,0.00884598]
[1741955412603,0.59686473,83627.0,83626.0,0.00884598]
[1741955415620,0.79823976,83627.0,83626.0,0.00884598]
[1741955415961,0.81326473,83627.0,83626.0,0.00884598]
[1741955417499,0.81326473,83627.0,83626.0,0.0003388]
[1741955417652,0.67866473,83627.0,83626.0,0.0003388]
[1741955417851,0.81326473,83627.0,83626.0,0.0003388]
[1741955418551,0.34575073,83627.0,83626.0,0.0003388]
[1741955418754,0.48035073,83627.0,83626.0,0.0003388]
[1741955418942,0.71950773,83627.0,83626.0,0.00884667]
[1741955419144,0.71950773,83627.0,83626.0,0.0003388]
[1741955419376,0.71950773,83627.0,83626.0,0.00884667]
[1741955419578,0.71950773,83627.0,83626.0,0.0003388]
[1741955419782,0.71950773,83627.0,83626.0,0.00884667]
[1741955419986,0.73146473,83627.0,83626.0,0.0003388]
[1741955422153,0.73146473,83627.0,83626.0,0.00884667]
[1741955422351,0.73146473,83627.0,83626.0,0.0003388]
[1741955422600,0.73146473,83627.0,83626.0,0.00884667]
[1741955422770,0.73146473,83627.0,83626.0,0.0003388]
[1741955422973,0.73146473,83627.0,83626.0,0.00884667]
[1741955423175,0.73146473,83627.0,83626.0,0.0003388]
[1741955423402,0.73146473,83627.0,83626.0,0.00884667]
[1741955423557,0.48035073,83627.0,83626.0,0.2514568]
[1741955423760,0.48035073,83627.0,83626.0,0.38516467]
[1741955423761,5.5e-07,83627.0,83626.0,0.38516467]
[1741955423954,0.0001694,83628.0,83627.0,0.329714]
[1741955424156,9e-07,83629.0,83628.0,0.376311]
[1741955424325,9e-07,83629.0,83628.0,0.39085185]
[1741955424529,9e-07,83629.0,83628.0,0.39934452]
[1741955425496,9e-07,83629.0,83628.0,0.39834452]
[1741955426321,0.10780384,83649.0,83628.0,0.39834452]
[1741955426322,4e-07,83642.0,83641.0,0.372472]
[1741955426609,4e-07,83642.0,83641.0,0.51542639]
[1741955426951,0.04694717,83649.0,83648.0,0.251051]
[1741955427156,0.04694717,83649.0,83648.0,0.372451]
[1741955427382,0.04694717,83649.0,83648.0,0.38079555]
[1741955427979,0.000339,83665.0,83652.0,0.011954]
[1741955427980,0.2513658,83657.0,83652.0,0.011954]
[1741955428198,0.01874918,83654.0,83652.0,0.251038]
[1741955428401,0.0003388,83657.0,83654.0,0.23908]
[1741955428612,0.2394098,83657.0,83653.0,0.00830815]
[1741955428789,0.3,83656.0,83655.0,0.00829413]
[1741955429001,0.3,83656.0,83654.0,0.00830114]
[1741955429203,0.3,83656.0,83655.0,0.00829413]
[1741955429402,0.551027,83656.0,83655.0,0.00829413]
[1741955431882,0.3,83640.0,83637.0,0.239127]
[1741955432580,0.3,83640.0,83638.0,0.239124]
[1741955432758,0.31875287,83640.0,83638.0,0.239124]
[1741955433119,0.01875287,83640.0,83638.0,0.239124]
[1741955433322,0.01875287,83640.0,83639.0,0.251078]
[1741955434490,0.01875287,83640.0,83638.0,0.241124]
[1741955434995,0.01875287,83640.0,83638.0,0.2414626]
[1741955435622,0.3,83639.0,83638.0,0.0023386]
[1741955435830,0.551078,83639.0,83638.0,0.0023386]
[1741955436202,0.551078,83639.0,83638.0,0.0003386]
[1741955438906,0.551078,83639.0,83638.0,0.00875551]
[1741955439259,0.551078,83639.0,83638.0,0.0003386]
[1741955439464,0.3,83632.0,83630.0,0.239148]
[1741955439842,0.551114,83627.0,83626.0,0.0003388]
[1741955441037,0.5698703,83627.0,83626.0,0.0003388]
[1741955443277,0.5698703,83627.0,83626.0,0.0043388]
[1741955443633,0.5698703,83627.0,83626.0,0.0073388]
[1741955444657,0.5579133,83627.0,83626.0,0.0073388]
[1741955445065,0.5698703,83627.0,83626.0,0.0073388]
[1741955446594,0.539161,83626.0,83624.0,0.239165]
[1741955446803,0.239163,83625.0,83620.0,0.011958]
[1741955447003,0.3,83626.0,83622.0,0.011958]
[1741955447204,0.011958,83625.0,83621.0,0.239171]
[1741955447401,0.23918,83619.0,83614.0,0.251152]
[1741955447569,0.23918,83619.0,83617.0,0.239185]
[1741955447967,0.25793702,83619.0,83617.0,0.239185]
[1741955448517,0.01875702,83619.0,83617.0,0.239185]
[1741955448719,0.01875702,83619.0,83618.0,0.239182]
[1741955449295,0.05030463,83619.0,83618.0,0.239182]
[1741955449652,0.01875702,83619.0,83618.0,0.239182]
[1741955449878,0.01875702,83619.0,83618.0,0.251141]
[1741955450633,0.01875702,83619.0,83618.0,0.257141]
[1741955450836,0.05054401,83619.0,83618.0,0.257141]
[1741955450995,0.01875702,83619.0,83618.0,0.262141]
[1741955453676,0.0506961,83619.0,83618.0,0.262141]
[1741955454052,0.0506961,83619.0,83618.0,0.27070293]
[1741955455196,0.0506961,83619.0,83618.0,0.35140293]
[1741955463022,0.0001694,83623.0,83622.0,0.251129]
[1741955463582,0.03213848,83623.0,83622.0,0.25966226]
[1741955463785,0.0001694,83623.0,83622.0,0.25966226]
[1741955464202,0.0001694,83623.0,83622.0,0.26466226]
[1741955464729,0.0001694,83623.0,83622.0,0.26866226]
[1741955465352,0.03137564,83623.0,83622.0,0.26866226]
[1741955467345,0.03137564,83623.0,83622.0,0.01753326]
[1741955467517,0.28250164,83623.0,83622.0,0.01753326]
[1741955467712,0.28250164,83623.0,83622.0,0.009]
[1741955468331,0.27054364,83623.0,83622.0,0.004]
[1741955468567,0.239172,83622.0,83619.0,0.239179]
[1741955468774,0.239172,83622.0,83619.0,0.218179]
[1741955468910,0.239172,83622.0,83620.0,0.00854728]
[1741955469350,0.03237564,83623.0,83620.0,0.00854728]
[1741955469689,0.03237564,83623.0,83617.0,0.0122978]
[1741955469896,0.239172,83622.0,83619.0,0.23918]
[1741955470063,0.28250764,83623.0,83620.0,0.239176]
[1741955470266,0.28250764,83623.0,83620.0,0.24772328]
[1741955470508,0.27054964,83623.0,83620.0,0.24772328]
[1741955470684,0.27154964,83623.0,83620.0,0.00854728]
[1741955470902,0.27054964,83623.0,83620.0,0.00854728]
[1741955471043,0.03137564,83623.0,83622.0,0.239171]
[1741955471245,0.03137564,83623.0,83622.0,0.238171]
[1741955471458,0.03237564,83623.0,83622.0,0.25866318]
[1741955471662,0.03337564,83623.0,83622.0,0.25866318]
[1741955472090,0.03237564,83623.0,83622.0,0.25866318]
[1741955472312,0.03337564,83623.0,83622.0,0.00853418]
[1741955472694,0.03337564,83623.0,83622.0,0.24770518]
[1741955472895,0.03237564,83623.0,83622.0,0.25966318]
[1741955473126,0.03337564,83623.0,83622.0,0.25966318]
[1741955474064,0.03337564,83623.0,83622.0,0.24770518]
[1741955474203,0.03337564,83623.0,83622.0,0.25966318]
[1741955475044,0.03337564,83623.0,83622.0,0.24770518]
[1741955475783,0.03337564,83623.0,83622.0,0.00853418]
[1741955475930,0.03337564,83623.0,83622.0,0.00853403]
[1741955476134,0.03337564,83623.0,83620.0,0.239175]
[1741955476334,0.27254464,83623.0,83618.0,0.2514798]
[1741955476529,0.239175,83621.0,83618.0,0.2514798]
[1741955476729,0.23918,83619.0,83618.0,0.0003388]
[1741955476933,0.251139,83619.0,83618.0,0.0003388]
[1741955477567,0.63210886,83619.0,83618.0,0.0003388]
[1741955477759,0.84226886,83619.0,83618.0,0.0003388]
[1741955478591,0.91117933,83619.0,83618.0,0.0003388]
[1741955478792,0.91117933,83619.0,83600.0,0.0003388]
[1741955478793,0.551192,83601.0,83600.0,0.0003388]
[1741955480020,0.598292,83601.0,83600.0,0.0003388]
[1741955480219,0.71786703,83601.0,83600.0,0.0003388]
[1741955480679,0.85242703,83601.0,83600.0,0.0003388]
[1741955481795,0.85442703,83601.0,83600.0,0.0003388]
[1741955482800,0.85642703,83601.0,83600.0,0.0003388]
[1741955483039,0.3,83589.0,83587.0,0.2176098]
[1741955483185,0.3,83589.0,83588.0,0.239268]
[1741955483624,0.3,83589.0,83588.0,0.251231]
[1741955483830,0.3,83589.0,83588.0,0.326231]
[1741955483963,0.3,83594.0,83591.0,0.239257]
[1741955484314,0.3,83588.0,83586.0,0.0003388]
[1741955484509,0.3,83591.0,83586.0,0.0003388]
[1741955484699,0.239264,83590.0,83588.0,0.002]
[1741955484860,0.3,83589.0,83586.0,0.0003388]
[1741955485066,0.551234,83587.0,83586.0,0.0003388]
[1741955485506,0.3,83587.0,83586.0,0.0003388]
[1741955486765,0.3,83587.0,83586.0,0.0023388]
[1741955487357,0.551234,83587.0,83586.0,0.0023388]
[1741955487758,0.551234,83587.0,83586.0,0.0043388]
[1741955488696,0.58395211,83587.0,83586.0,0.0043388]
[1741955488902,0.62332474,83587.0,83586.0,0.0043388]
[1741955490085,0.3,83577.0,83573.0,0.2416128]
[1741955490296,0.3,83577.0,83574.0,0.239306]
[1741955490505,0.3,83577.0,83576.0,0.239303]